bitfinex/quotes_BTCUSD_20251011
["timestamp","ask_amount","ask_price","bid_price","bid_amount"]
[1760205087357,7.30628797,112200.0,112190.0,0.001]
[1760205087575,2.037738,112190.0,112180.0,0.0277146]
[1760205087779,0.54845269,112170.0,112160.0,0.02787]
[1760205087964,0.51831669,112160.0,112150.0,0.08301]
[1760205088187,1.06959206,112160.0,112150.0,0.06478]
[1760205088411,1.06959206,112160.0,112150.0,0.06651881]
[1760205088570,1.06959206,112160.0,112150.0,0.12180881]
[1760205088867,1.09641675,112160.0,112150.0,0.12180881]
[1760205089198,1.09650633,112160.0,112150.0,0.12180881]
[1760205089616,1.52633256,112160.0,112150.0,0.12280881]
[1760205090682,1.53696242,112160.0,112150.0,0.12280881]
[1760205092265,1.53696242,112160.0,112150.0,0.06751881]
[1760205092690,1.53696242,112160.0,112150.0,0.12280881]
[1760205092918,6.67320816,112160.0,112150.0,0.00313881]
[1760205096395,6.58448882,112160.0,112150.0,0.00313881]
[1760205101757,6.57385896,112160.0,112150.0,0.00313881]
[1760205102628,6.58475671,112160.0,112150.0,0.00313881]
[1760205108260,6.57385896,112160.0,112150.0,0.00313881]
[1760205109211,1.58600496,112160.0,112150.0,0.00313881]
[1760205110189,1.58600496,112160.0,112150.0,0.06392881]
[1760205110389,1.55648446,112160.0,112150.0,0.11444881]
[1760205110805,1.55648446,112160.0,112150.0,0.06392881]
[1760205112425,1.55648446,112160.0,112150.0,0.00313881]
[1760205112825,1.55648446,112160.0,112150.0,0.00213881]
[1760205113042,6.6625783,112160.0,112150.0,0.00213881]
[1760205113240,6.67922193,112160.0,112150.0,0.00213881]
[1760205114933,6.59050259,112160.0,112150.0,0.00213881]
[1760205115201,6.60970056,112160.0,112150.0,0.00213881]
[1760205116972,6.60970056,112160.0,112150.0,0.03541881]
[1760205117174,6.60970056,112160.0,112150.0,0.00213881]
[1760205118205,6.63362915,112160.0,112150.0,0.00213881]
[1760205121755,6.63362915,112160.0,112150.0,0.03541881]
[1760205121959,1.64577515,112160.0,112150.0,0.11344881]
[1760205122229,1.61625465,112160.0,112150.0,0.11344881]
[1760205122608,1.59232606,112160.0,112150.0,0.11344881]
[1760205123485,1.25232606,112160.0,112150.0,0.11344881]
[1760205123775,0.5341087,112160.0,112150.0,0.2917814]
[1760205123991,0.8741087,112160.0,112150.0,0.2917814]
[1760205124405,0.85746507,112160.0,112150.0,0.2917814]
[1760205125442,0.85746507,112160.0,112150.0,0.2927814]
[1760205127023,1.03578176,112160.0,112150.0,0.2927814]
[1760205130391,1.00895707,112160.0,112150.0,0.2927814]
[1760205131890,0.34008958,112160.0,112150.0,0.2927814]
[1760205132074,0.83064038,112160.0,112150.0,0.2927814]
[1760205132299,1.00895707,112160.0,112150.0,0.2927814]
[1760205133116,1.00895707,112160.0,112150.0,0.11444881]
[1760205133889,1.00895707,112160.0,112150.0,0.2927814]
[1760205135116,1.49950787,112160.0,112150.0,0.11444881]
[1760205137433,1.49950787,112160.0,112150.0,0.11082893]
[1760205137904,0.83064038,112160.0,112150.0,0.30699477]
[1760205138175,0.83064038,112160.0,112150.0,0.28916152]
[1760205140676,0.34008958,112160.0,112150.0,0.28469107]
[1760205141115,0.34008958,112160.0,112150.0,0.27798535]
[1760205141643,0.34008958,112160.0,112150.0,0.26904498]
[1760205142483,0.83064038,112160.0,112150.0,0.26904498]
[1760205143544,0.4905508,112160.0,112150.0,0.26904498]
[1760205146425,0.51830199,112170.0,112160.0,0.17831669]
[1760205146666,1.00890317,112170.0,112160.0,0.23663669]
[1760205146852,0.83060118,112170.0,112160.0,0.28561669]
[1760205147273,0.83213554,112170.0,112160.0,0.27444892]
[1760205147481,1.01043633,112170.0,112160.0,0.27444892]
[1760205147695,0.83213554,112170.0,112160.0,0.27357574]
[1760205149520,1.44494314,112170.0,112160.0,0.27357574]
[1760205149919,1.44494314,112170.0,112160.0,0.27457574]
[1760205150183,0.34158474,112170.0,112160.0,0.27457574]
[1760205150622,0.89326394,112170.0,112160.0,0.27457574]
[1760205151026,1.44494314,112170.0,112160.0,0.27457574]
[1760205153430,1.62324393,112170.0,112160.0,0.27457574]
[1760205154921,1.62324393,112170.0,112160.0,0.2680093]
[1760205156718,1.62324393,112170.0,112160.0,0.1083]
[1760205156885,1.62324393,112170.0,112160.0,0.23763669]
[1760205157095,1.62324393,112170.0,112160.0,0.28661669]
[1760205171611,1.44494314,112170.0,112160.0,0.28661669]
[1760205172116,0.89326394,112170.0,112160.0,0.28661669]
[1760205172332,1.44494314,112170.0,112160.0,0.28661669]
[1760205173859,1.62324393,112170.0,112160.0,0.28661669]
[1760205174084,1.62324393,112170.0,112160.0,0.1083]
[1760205174296,1.62324393,112170.0,112160.0,0.28661669]
[1760205175361,1.62324393,112170.0,112160.0,0.05932]
[1760205176001,1.62324393,112170.0,112160.0,0.23763669]
[1760205176691,1.62324393,112170.0,112160.0,0.28805669]
[1760205180351,1.62324393,112170.0,112160.0,0.05932]
[1760205181487,1.65442182,112170.0,112160.0,0.02594]
[1760205181925,0.55106342,112170.0,112160.0,0.05875]
[1760205182155,1.62324393,112170.0,112160.0,0.28748669]
[1760205184321,1.44494314,112170.0,112160.0,0.28748669]
[1760205185579,1.62324393,112170.0,112160.0,0.28748669]
[1760205188630,1.62324393,112170.0,112160.0,0.28092923]
[1760205189035,0.89326394,112170.0,112160.0,0.28092923]
[1760205189447,1.62324393,112170.0,112160.0,0.05219254]
[1760205189632,1.65441471,112170.0,112160.0,0.01938254]
[1760205189831,1.65441471,112170.0,112160.0,0.05219254]
[1760205190046,1.65441471,112170.0,112160.0,0.001]
[1760205190323,1.65441471,112170.0,112160.0,0.03381]
[1760205190525,1.65441471,112170.0,112160.0,0.21212669]
[1760205190736,1.65441471,112170.0,112160.0,0.23692669]
[1760205190954,1.47176294,112170.0,112160.0,0.28734669]
[1760205196027,0.36840454,112170.0,112160.0,0.28734669]
[1760205196253,1.47176294,112170.0,112160.0,0.28734669]
[1760205197849,0.92008374,112170.0,112160.0,0.28734669]
[1760205199999,1.65006373,112170.0,112160.0,0.23692669]
[1760205200408,1.65006373,112170.0,112160.0,0.28605669]
[1760205201371,1.47176294,112170.0,112160.0,0.28605669]
[1760205201578,1.65006373,112170.0,112160.0,0.28605669]
[1760205206086,1.09838453,112170.0,112160.0,0.28605669]
[1760205207474,0.92008374,112170.0,112160.0,0.28605669]
[1760205209275,1.47176294,112170.0,112160.0,0.28605669]
[1760205209689,0.92008374,112170.0,112160.0,0.28605669]
[1760205210146,0.54670533,112170.0,112160.0,0.28605669]
[1760205210354,1.09838453,112170.0,112160.0,0.28605669]
[1760205210974,0.92008374,112170.0,112160.0,0.28605669]
[1760205211616,0.85875949,112170.0,112160.0,0.28605669]
[1760205213905,0.51875949,112170.0,112160.0,0.28605669]
[1760205215438,0.02840454,112170.0,112160.0,0.28605669]
[1760205215672,0.66860973,112200.0,112190.0,0.178269]
[1760205215904,5.039e-05,112200.0,112190.0,0.287379]
[1760205216114,0.02686163,112200.0,112190.0,0.287379]
[1760205216535,0.0285997,112200.0,112190.0,0.287379]
[1760205217807,0.00178846,112200.0,112190.0,0.287379]
[1760205219138,0.00178846,112200.0,112190.0,0.288379]
[1760205219608,0.00178846,112200.0,112190.0,0.287379]
[1760205219865,0.00178846,112200.0,112190.0,0.288379]
[1760205222082,0.00178846,112200.0,112190.0,0.38837899]
[1760205223847,0.00178846,112200.0,112190.0,0.288379]
[1760205224060,0.00178846,112200.0,112190.0,0.38837899]
[1760205225957,0.00178846,112200.0,112190.0,0.288379]
[1760205226158,0.00178846,112200.0,112190.0,0.38837899]
[1760205229506,0.34178846,112200.0,112190.0,0.11011]
[1760205229708,1.53192225,112200.0,112190.0,0.06098]
[1760205229916,1.58726748,112200.0,112190.0,0.06098]
[1760205230111,1.24726748,112200.0,112190.0,0.11274]
[1760205239179,1.55873694,112200.0,112190.0,0.11274]
[1760205243247,1.58888884,112200.0,112190.0,0.11274]
[1760205245820,1.06736311,112200.0,112190.0,0.11274]
[1760205246030,1.07717165,112200.0,112190.0,0.11274]
[1760205246237,1.03721121,112200.0,112190.0,0.291009]
[1760205249770,1.03721121,112200.0,112190.0,0.11274]
[1760205254885,1.03721121,112200.0,112190.0,0.291009]
[1760205255330,0.36860315,112200.0,112190.0,0.291009]
[1760205255535,0.34178846,112200.0,112190.0,0.291009]
[1760205258841,0.83214341,112200.0,112190.0,0.291009]
[1760205261721,0.34178846,112200.0,112190.0,0.291009]
[1760205261920,0.00178846,112200.0,112190.0,0.291009]
[1760205265291,0.30441046,112210.0,112200.0,0.17825311]
[1760205265508,0.30441046,112210.0,112200.0,0.28573311]
[1760205265821,0.49035495,112210.0,112200.0,0.28573311]
[1760205266445,0.49035495,112210.0,112200.0,0.28673311]
[1760205269693,0.24410335,112220.0,112200.0,0.28673311]
[1760205269904,0.49035495,112210.0,112200.0,0.23816311]
[1760205270522,0.49035495,112210.0,112200.0,0.28673311]
[1760205270772,0.49035495,112210.0,112200.0,0.28573311]
[1760205270983,0.49093418,112210.0,112200.0,0.28573311]
[1760205271544,0.5517892,112210.0,112200.0,0.28573311]
[1760205271888,0.5517892,112210.0,112200.0,0.28673311]
[1760205273203,0.00057923,112210.0,112200.0,0.28673311]
[1760205273408,0.5517892,112210.0,112200.0,0.28673311]
[1760205275990,0.00057923,112210.0,112200.0,0.28673311]
[1760205276220,0.5517892,112210.0,112200.0,0.28673311]
[1760205276837,0.00057923,112210.0,112200.0,0.28673311]
[1760205277053,0.5517892,112210.0,112200.0,0.28673311]
[1760205278935,0.00057923,112210.0,112200.0,0.28673311]
[1760205279157,0.5517892,112210.0,112200.0,0.28673311]
[1760205280566,0.73002643,112210.0,112200.0,0.28673311]
[1760205281212,0.5517892,112210.0,112200.0,0.28673311]
[1760205282725,0.8917892,112210.0,112200.0,0.28673311]
[1760205287794,0.51881646,112210.0,112200.0,0.28673311]
[1760205288052,1.65342805,112210.0,112200.0,0.10848]
[1760205288194,1.07002643,112210.0,112200.0,0.10848]
[1760205288403,1.09683923,112210.0,112200.0,0.10848]
[1760205289103,1.12903088,112210.0,112200.0,0.10848]
[1760205289350,0.57782091,112210.0,112200.0,0.10848]
[1760205289627,1.12903088,112210.0,112200.0,0.10848]
[1760205289893,1.68024085,112210.0,112200.0,0.10848]
[1760205290956,1.6480492,112210.0,112200.0,0.10848]
[1760205291170,0.54562926,112210.0,112200.0,0.10848]
[1760205291386,1.6480492,112210.0,112200.0,0.10848]
[1760205293386,1.6480492,112210.0,112200.0,0.1075]
[1760205293601,0.61031599,112210.0,112200.0,0.1075]
[1760205293808,1.71273593,112210.0,112200.0,0.1075]
[1760205295009,1.74288783,112210.0,112200.0,0.1075]
[1760205295296,1.74288783,112210.0,112200.0,0.05991]
[1760205296882,1.74288783,112210.0,112200.0,0.02566]
[1760205297093,7.30031472,112210.0,112200.0,0.001]
[1760205297320,7.2819518,112210.0,112200.0,0.001]
[1760205298246,6.73074183,112210.0,112200.0,0.001]
[1760205302979,6.72985083,112210.0,112200.0,0.001]
[1760205305589,7.2810608,112210.0,112200.0,0.001]
[1760205305838,6.72985083,112210.0,112200.0,0.001]
[1760205306260,7.2810608,112210.0,112200.0,0.001]
[1760205306897,7.29385049,112210.0,112200.0,0.001]
[1760205308236,7.19192867,112200.0,112190.0,0.00095448]
[1760205309163,7.21868867,112200.0,112190.0,0.00095448]
[1760205309633,7.28121403,112200.0,112190.0,0.00095448]
[1760205309999,7.28221403,112200.0,112190.0,0.00095448]
[1760205310347,7.35581497,112200.0,112190.0,0.00095448]
[1760205314485,7.28221403,112200.0,112190.0,0.00095448]
[1760205316312,7.29886307,112200.0,112190.0,0.00095448]
[1760205318658,6.95885914,112200.0,112190.0,0.00095448]
[1760205320515,7.29885914,112200.0,112190.0,0.00095448]
[1760205320925,7.26648568,112200.0,112190.0,0.00095448]
[1760205321140,0.59484987,112200.0,112190.0,0.10361448]
[1760205321362,1.6806247,112200.0,112190.0,0.10361448]
[1760205321577,1.7107766,112200.0,112190.0,0.10361448]
[1760205321786,1.6806247,112200.0,112190.0,0.10361448]
[1760205322001,1.7107766,112200.0,112190.0,0.10361448]
[1760205322212,1.7107766,112200.0,112190.0,0.05644448]
[1760205322418,2.26198657,112200.0,112190.0,0.00095448]
[1760205323768,2.26198657,112200.0,112190.0,0.03264448]
[1760205323987,2.22979492,112200.0,112190.0,0.03264448]
[1760205324447,1.67858495,112200.0,112190.0,0.03264448]
[1760205324812,2.22979492,112200.0,112190.0,0.03264448]
[1760205325396,2.24645829,112200.0,112190.0,0.03264448]
[1760205326394,2.24645829,112200.0,112190.0,0.00095448]
[1760205326959,2.27883175,112200.0,112190.0,0.00095448]
[1760205327162,2.3110234,112200.0,112190.0,0.00095448]
[1760205332605,1.93864994,112200.0,112190.0,0.00095448]
[1760205333009,1.38743997,112200.0,112190.0,0.05644448]
[1760205333222,1.33858495,112200.0,112190.0,0.10361448]
[1760205333422,1.21671369,112200.0,112190.0,0.10361448]
[1760205335077,1.21571369,112200.0,112190.0,0.10361448]
[1760205340625,1.24790534,112200.0,112190.0,0.00095448]
[1760205343753,1.58790534,112200.0,112190.0,0.03345448]
[1760205343979,1.58790534,112200.0,112190.0,0.05778448]
[1760205344201,1.58790534,112200.0,112190.0,0.00095448]
[1760205345621,1.6202788,112200.0,112190.0,0.00095448]
[1760205350292,7.18712648,112200.0,112190.0,1e-08]
[1760205350516,0.34,112170.0,112160.0,0.0502]
[1760205350715,0.34,112170.0,112160.0,0.05025039]
[1760205350716,1.49884947,112170.0,112160.0,0.05025039]
[1760205350921,1.49884947,112170.0,112160.0,0.13290039]
[1760205351126,1.49884947,112170.0,112160.0,0.13521831]
[1760205351329,1.52567061,112170.0,112160.0,0.13521831]
[1760205351916,1.03539627,112170.0,112160.0,0.13521831]
[1760205352097,1.52567061,112170.0,112160.0,0.13521831]
[1760205352656,1.03539627,112170.0,112160.0,0.13521831]
[1760205352791,1.03539627,112170.0,112160.0,0.13621831]
[1760205356856,1.03539627,112170.0,112160.0,0.10945831]
[1760205361512,1.03539627,112170.0,112160.0,0.287775]
[1760205361750,0.51709548,112170.0,112160.0,0.287775]
[1760205361995,0.17828489,112180.0,112160.0,0.287775]
[1760205362237,0.66857513,112170.0,112160.0,0.23530708]
[1760205362474,0.36681927,112180.0,112170.0,0.17830079]
[1760205362708,0.6953785,112180.0,112170.0,0.21080079]
[1760205362950,0.66855923,112180.0,112170.0,0.28701906]
[1760205369308,0.49027434,112180.0,112170.0,0.28701906]
[1760205370443,0.02681666,112190.0,112180.0,0.17828489]
[1760205370444,0.54508702,112190.0,112180.0,0.17828489]
[1760205370609,1.03536136,112190.0,112180.0,0.17828489]
[1760205370829,0.83027434,112190.0,112180.0,0.28642361]
[1760205371064,1.0085447,112190.0,112180.0,0.28642361]
[1760205371708,1.03536001,112190.0,112180.0,0.28642361]
[1760205376419,1.03536001,112190.0,112180.0,0.10813872]
[1760205382181,0.54508567,112190.0,112180.0,0.10813872]
[1760205382414,1.03536001,112190.0,112180.0,0.10813872]
[1760205394911,1.03512381,112190.0,112180.0,0.10813872]
[1760205395498,1.09630202,112190.0,112180.0,0.10813872]
[1760205407643,0.91803166,112190.0,112180.0,0.30425209]
[1760205407871,0.91803166,112190.0,112180.0,0.28642361]
[1760205409444,1.09630066,112190.0,112180.0,0.28642361]
[1760205409656,0.91803166,112190.0,112180.0,0.28642361]
[1760205410590,0.89121635,112190.0,112180.0,0.28642361]
[1760205415410,0.00037517,112200.0,112190.0,0.178269]
[1760205415610,0.89182772,112200.0,112190.0,0.276749]
[1760205416643,1.44328027,112200.0,112190.0,0.276749]
[1760205420899,1.62153338,112200.0,112190.0,0.276749]
[1760205421113,1.62153338,112200.0,112190.0,0.27732827]
[1760205421458,1.44328027,112200.0,112190.0,0.27732827]
[1760205422219,2.17298593,112200.0,112190.0,0.05425927]
[1760205422460,2.26770328,112200.0,112190.0,0.05425927]
[1760205422683,2.29451843,112200.0,112190.0,0.02418927]
[1760205422882,1.71069208,112200.0,112190.0,0.05425927]
[1760205424129,1.71069208,112200.0,112190.0,0.00057927]
[1760205424331,1.71069208,112200.0,112190.0,0.03064927]
[1760205424547,1.71069208,112200.0,112190.0,0.00057927]
[1760205425192,7.37004571,112200.0,112190.0,1e-08]
[1760205425401,0.20843679,112180.0,112160.0,0.05025039]
[1760205425603,1.28120589,112170.0,112160.0,0.05025039]
[1760205425808,0.17830079,112170.0,112160.0,0.08032039]
[1760205426081,0.17830079,112170.0,112160.0,0.12512039]
[1760205426260,1.30802703,112170.0,112160.0,0.08205896]
[1760205426501,1.30802703,112170.0,112160.0,0.12685896]
[1760205427036,1.30802703,112170.0,112160.0,0.12785896]
[1760205427630,1.30802703,112170.0,112160.0,0.08305896]
[1760205428243,1.68021868,112170.0,112160.0,0.02954896]
[1760205430324,1.68021868,112170.0,112160.0,0.05961896]
[1760205431279,1.68021868,112170.0,112160.0,0.02954896]
[1760205432275,1.67961868,112170.0,112160.0,0.02954896]
[1760205435507,1.67961868,112170.0,112160.0,0.05911896]
[1760205435713,1.67961868,112170.0,112160.0,0.08110896]
[1760205436553,0.57671358,112170.0,112160.0,0.08110896]
[1760205436764,1.64742703,112170.0,112160.0,0.08110896]
[1760205441774,1.64742703,112170.0,112160.0,0.12619896]
[1760205445155,0.57827369,112170.0,112160.0,0.30451565]
[1760205445620,1.09657448,112170.0,112160.0,0.30451565]
[1760205446180,0.91827369,112170.0,112160.0,0.30451565]
[1760205446497,0.36682114,112170.0,112160.0,0.30451565]
[1760205446723,0.34,112170.0,112160.0,0.30451565]
[1760205446874,0.55145255,112180.0,112170.0,0.17830079]
[1760205447073,0.91826798,112180.0,112170.0,0.22986079]
[1760205447280,0.91826798,112180.0,112170.0,0.27495079]
[1760205448094,0.55145255,112180.0,112170.0,0.27495079]
[1760205451256,0.21400074,112190.0,112170.0,0.27495079]
[1760205451459,0.55145255,112180.0,112170.0,0.22986079]
[1760205452010,0.55145255,112180.0,112170.0,0.27495079]
[1760205452622,0.55145255,112180.0,112170.0,0.27610973]
[1760205455572,0.70415838,112190.0,112170.0,0.27610973]
[1760205455769,1.04415838,112190.0,112180.0,0.06708]
[1760205455971,1.04415838,112190.0,112180.0,0.09722942]
[1760205461276,0.55400074,112190.0,112180.0,0.09722942]
[1760205461485,1.04415838,112190.0,112180.0,0.09722942]
[1760205463562,1.04415552,112190.0,112180.0,0.27551431]
[1760205463927,0.36681543,112190.0,112180.0,0.27551431]
[1760205464369,0.34,112190.0,112180.0,0.27551431]
[1760205465101,0.0271873,112200.0,112190.0,0.178269]
[1760205465301,0.0271873,112200.0,112190.0,0.243799]
[1760205465512,0.3671873,112200.0,112190.0,0.274269]
[1760205465706,0.0271873,112200.0,112190.0,0.274269]
[1760205466106,0.00037517,112200.0,112190.0,0.274269]
[1760205466762,0.00037517,112200.0,112190.0,0.275269]
[1760205467730,0.00037517,112200.0,112190.0,0.274269]
[1760205467939,0.00037517,112200.0,112190.0,0.37526899]
[1760205468155,0.00037517,112200.0,112190.0,0.37626899]
[1760205468468,0.00037517,112200.0,112190.0,0.89142662]
[1760205469191,0.00037517,112200.0,112190.0,1.32095614]
[1760205469782,0.00037517,112200.0,112190.0,1.31995614]
[1760205470194,0.00037517,112200.0,112190.0,1.32195614]
[1760205470411,0.00037517,112200.0,112190.0,1.32095614]
[1760205470631,0.00037517,112200.0,112190.0,1.32295614]
[1760205471361,0.00037517,112200.0,112190.0,0.8327985]
[1760205471518,0.00037517,112200.0,112190.0,1.32295614]
[1760205471738,0.00037517,112200.0,112190.0,0.8327985]
[1760205472151,0.00037517,112200.0,112190.0,1.32295614]
[1760205473616,0.00037517,112200.0,112190.0,0.98295614]
[1760205474780,0.00037517,112200.0,112190.0,1.25165614]
[1760205474959,0.00037517,112200.0,112190.0,1.01310804]
[1760205475459,0.00037517,112200.0,112190.0,1.07693756]
[1760205478767,0.07162362,112230.0,112220.0,0.66837899]
[1760205478948,0.07162362,112230.0,112220.0,0.76437899]
[1760205479141,0.00231653,112230.0,112220.0,0.76437899]
[1760205479350,0.00231653,112230.0,112220.0,0.27422135]
[1760205479840,0.00231653,112230.0,112220.0,0.27522135]
[1760205480066,0.00236692,112230.0,112220.0,0.27522135]
[1760205480273,0.00236692,112230.0,112220.0,0.27622135]
[1760205482781,0.49252456,112230.0,112220.0,0.27622135]
[1760205483006,0.00236692,112230.0,112220.0,0.27622135]
[1760205484680,0.00236692,112230.0,112220.0,0.30298135]
[1760205484949,0.00236692,112230.0,112220.0,0.57168135]
[1760205488204,0.70403926,112250.0,112240.0,0.17818959]
[1760205488411,0.70408964,112250.0,112240.0,0.27418959]
[1760205489225,0.213932,112250.0,112240.0,0.27418959]
[1760205489644,0.70408964,112250.0,112240.0,0.27418959]
[1760205490402,0.51700678,112250.0,112240.0,0.27418959]
[1760205491268,0.02684914,112250.0,112240.0,0.27418959]
[1760205491835,0.02684914,112250.0,112240.0,0.27518959]
[1760205493739,5.038e-05,112250.0,112240.0,0.27518959]
[1760205493986,0.00120826,112250.0,112240.0,0.27518959]
[1760205496220,0.00120826,112250.0,112240.0,1.23034721]
[1760205497090,0.00120826,112250.0,112240.0,1.22934721]
[1760205497235,0.00120826,112250.0,112240.0,1.23134721]
[1760205497675,0.00120826,112250.0,112240.0,0.74018957]
[1760205498084,0.00120826,112250.0,112240.0,0.74218957]
[1760205498307,0.00120826,112250.0,112240.0,0.80598273]
[1760205498616,0.00120826,112250.0,112240.0,0.80498273]
[1760205498917,0.00120826,112250.0,112240.0,0.80598273]
[1760205499359,0.00120826,112250.0,112240.0,0.74218957]
[1760205505820,0.00120826,112250.0,112240.0,1.01088957]
[1760205508141,0.00120826,112250.0,112240.0,0.98588958]
[1760205508353,0.00120826,112250.0,112240.0,1.01088957]
[1760205516261,0.00120826,112250.0,112240.0,1.07468273]
[1760205517507,0.00120826,112250.0,112240.0,1.6252683]
[1760205519178,0.00120826,112250.0,112240.0,1.07468273]
[1760205521029,0.55179383,112250.0,112240.0,0.68098275]
[1760205521228,0.55179383,112250.0,112240.0,0.78098274]
[1760205521429,0.00120826,112250.0,112240.0,0.78098274]
[1760205523222,0.00120826,112250.0,112240.0,0.80770274]
[1760205523429,0.00120826,112250.0,112240.0,0.74390958]
[1760205524287,0.00120826,112250.0,112240.0,0.64390959]
[1760205524488,0.00120826,112250.0,112240.0,0.82284282]
[1760205529721,0.00120826,112250.0,112240.0,0.72284283]
[1760205529924,0.00120826,112250.0,112240.0,0.82284282]
[1760205532368,0.00120826,112250.0,112240.0,0.72284283]
[1760205532580,0.00120826,112250.0,112240.0,1.09154282]
[1760205533914,0.00120826,112250.0,112240.0,0.99154283]
[1760205534114,0.55179383,112250.0,112240.0,0.99154283]
[1760205534258,0.55179383,112250.0,112240.0,0.38284283]
[1760205534456,0.55179383,112250.0,112240.0,0.30390959]
[1760205535184,0.55179383,112250.0,112240.0,0.30290959]
[1760205535592,0.55179383,112250.0,112240.0,0.30190959]
[1760205535746,0.55179383,112250.0,112240.0,0.366082]
[1760205536405,0.72996754,112250.0,112240.0,0.366082]
[1760205536837,0.72996754,112250.0,112240.0,0.30190959]
[1760205537053,0.72996754,112250.0,112240.0,0.30290959]
[1760205537878,0.72996754,112250.0,112240.0,0.30090959]
[1760205538080,0.72996754,112250.0,112240.0,0.30190959]
[1760205538256,0.72996754,112250.0,112240.0,0.30290959]
[1760205539989,0.55179383,112250.0,112240.0,0.30290959]
[1760205540391,0.00120826,112250.0,112240.0,0.30290959]
[1760205540594,0.55179383,112250.0,112240.0,0.30290959]
[1760205552184,0.57859262,112250.0,112240.0,0.30290959]
[1760205557174,0.02800705,112250.0,112240.0,0.30290959]
[1760205557539,0.57859262,112250.0,112240.0,0.30290959]
[1760205579581,0.51763598,112250.0,112240.0,0.30290959]
[1760205584458,0.28662069,112250.0,112240.0,0.30290959]
[1760205585576,0.48962893,112250.0,112240.0,0.30290959]
[1760205587058,0.69458743,112260.0,112240.0,0.30290959]
[1760205587286,0.69509133,112260.0,112250.0,0.06446]
[1760205587514,0.69509133,112260.0,112250.0,0.09181]
[1760205590147,0.69509133,112260.0,112250.0,0.09281]
[1760205592948,0.69567017,112260.0,112250.0,0.09281]
[1760205601544,0.20604124,112260.0,112250.0,0.09281]
[1760205601753,0.69567017,112260.0,112250.0,0.09281]
[1760205606421,1.09694774,112260.0,112250.0,0.04918]
[1760205607015,1.09694774,112260.0,112250.0,0.001]
[1760205607404,1.09694774,112260.0,112250.0,0.02835]
[1760205607997,1.09694774,112260.0,112250.0,0.02735]
[1760205608718,0.17817371,112250.0,112240.0,0.0933839]
[1760205608975,0.66780264,112250.0,112240.0,0.1207339]
[1760205609573,0.69460461,112250.0,112240.0,0.1207339]
[1760205609871,0.69460461,112250.0,112240.0,0.1217339]
[1760205610002,1.03460461,112250.0,112240.0,0.0781039]
[1760205610210,0.54497568,112250.0,112240.0,0.1217339]
[1760205610411,1.03460461,112250.0,112240.0,0.1217339]
[1760205610808,0.54497568,112250.0,112240.0,0.1217339]
[1760205611009,0.54497568,112250.0,112240.0,0.29992349]
[1760205611213,0.54497568,112250.0,112240.0,0.29892349]
[1760205611850,0.54497568,112250.0,112240.0,0.1207339]
[1760205612728,1.03460461,112250.0,112240.0,0.1217339]
[1760205614770,1.03460461,112250.0,112240.0,0.0781039]
[1760205615197,1.03460461,112250.0,112240.0,0.1227139]
[1760205615635,1.03460461,112250.0,112240.0,0.0949939]
[1760205617627,1.03460461,112250.0,112240.0,0.0503839]
[1760205619254,1.09588218,112250.0,112240.0,0.0503839]
[1760205619461,1.09588218,112250.0,112240.0,0.0009539]
[1760205620457,1.58551111,112250.0,112240.0,0.0295439]
[1760205625684,1.58551111,112250.0,112240.0,0.0009539]
[1760205627885,1.58551111,112250.0,112240.0,0.0295439]
[1760205628075,1.58551111,112250.0,112240.0,0.0503939]
[1760205629370,1.09588218,112250.0,112240.0,0.0503939]
[1760205629812,1.06475651,112250.0,112240.0,0.0503939]
[1760205629993,1.06475651,112250.0,112240.0,0.0950039]
[1760205634728,1.03460461,112250.0,112240.0,0.0950039]
[1760205637615,1.03460461,112250.0,112240.0,0.0503939]
[1760205639677,1.7453161,112250.0,112240.0,0.0009539]
[1760205639888,1.80649246,112250.0,112240.0,0.0009539]
[1760205640106,6.76429577,112250.0,112240.0,0.0009539]
[1760205641739,1.77644177,112250.0,112240.0,0.0009539]
[1760205641946,6.76429577,112250.0,112240.0,0.0009539]
[1760205642203,1.77744177,112250.0,112240.0,0.0009539]
[1760205642393,6.76629577,112250.0,112240.0,0.0009539]
[1760205642788,1.77844177,112250.0,112240.0,0.0009539]
[1760205643156,6.76629577,112250.0,112240.0,0.0009539]
[1760205643476,6.76629577,112250.0,112240.0,1e-08]
[1760205643659,0.20835737,112230.0,112220.0,0.02676]
[1760205643794,6.32923074,112230.0,112220.0,0.02676]
[1760205644353,6.35604196,112230.0,112220.0,0.02676]
[1760205649523,6.35604196,112230.0,112220.0,0.02791817]
[1760205650316,6.35604196,112230.0,112220.0,0.05630817]
[1760205650662,1.36818796,112230.0,112220.0,0.05630817]
[1760205651567,1.33706229,112230.0,112220.0,0.11694817]
[1760205655499,1.33706229,112230.0,112220.0,0.29516952]
[1760205655500,0.57775807,112230.0,112220.0,0.29516952]
[1760205655695,0.75596354,112230.0,112220.0,0.29516952]
[1760205660003,0.75596354,112230.0,112220.0,0.11694817]
[1760205661683,0.75596354,112230.0,112220.0,0.29516952]
[1760205666505,0.75596354,112230.0,112220.0,0.11694817]
[1760205667538,1.30691039,112230.0,112220.0,0.11694817]
[1760205667936,1.30691039,112230.0,112220.0,0.07711817]
[1760205668144,1.30691039,112230.0,112220.0,0.11694817]
[1760205668362,1.30691039,112230.0,112220.0,0.07711817]
[1760205668363,1.64691039,112230.0,112220.0,0.07711817]
[1760205673144,1.67803606,112230.0,112220.0,0.07711817]
[1760205673364,1.67803606,112230.0,112220.0,0.00115817]
[1760205674891,1.67803606,112230.0,112220.0,0.04911817]
[1760205675249,1.64691039,112230.0,112220.0,0.04911817]
[1760205676478,1.64691039,112230.0,112220.0,0.08925817]
[1760205679105,0.75596354,112230.0,112220.0,0.08925817]
[1760205679416,0.72915232,112230.0,112220.0,0.08925817]
[1760205679883,0.55094685,112230.0,112220.0,0.08925817]
[1760205680088,0.55094685,112230.0,112220.0,0.26747952]
[1760205681689,0.72915232,112230.0,112220.0,0.26747952]
[1760205682586,0.55094685,112230.0,112220.0,0.26747952]
[1760205683519,0.17819032,112240.0,112220.0,0.26747952]
[1760205683745,0.55094685,112230.0,112220.0,0.22618135]
[1760205684458,0.55094685,112230.0,112220.0,0.26632135]
[1760205684840,0.55094685,112240.0,112230.0,0.17820547]
[1760205685066,0.00095386,112250.0,112240.0,0.17818959]
[1760205685281,0.00095386,112250.0,112240.0,0.22614959]
[1760205685488,0.55190071,112250.0,112240.0,0.26628959]
[1760205685714,0.00095386,112250.0,112240.0,0.26628959]
[1760205686387,0.55190071,112250.0,112240.0,0.26628959]
[1760205686807,0.55190071,112250.0,112240.0,0.26828959]
[1760205687670,0.00095386,112250.0,112240.0,0.81923644]
[1760205688750,0.00095386,112250.0,112240.0,0.26828959]
[1760205691572,0.00095386,112250.0,112240.0,0.81923644]
[1760205693479,0.00095386,112250.0,112240.0,1.27376595]
[1760205694937,0.00095386,112250.0,112240.0,1.27276595]
[1760205695413,0.00095386,112250.0,112240.0,1.27376595]
[1760205698624,0.00095386,112250.0,112240.0,1.54246595]
[1760205699288,0.00095386,112250.0,112240.0,1.27376595]
[1760205699491,0.00095386,112250.0,112240.0,1.21209381]